Workbook

Sheet Лист1
A1: Школа | F1: Утвердил: | G1: должность
A2: Типовое примерное меню приготавливаемых блюд | G2: фамилия
A3: Возрастная категория | G3: дата | H3: 1 | I3: 9 | J3: 2023
H4: день | I4: месяц | J4: год
A5: Неделя | B5: День недели | C5: Прием пищи | D5: Раздел меню | E5: Блюда | F5: Вес блюда, г | G5: Белки | H5: Жиры | I5: Углеводы | J5: Калорийность | K5: № рецептуры | L5: Цена
A6: 1 | B6: 1 | C6: Завтрак | D6: гор.блюдо | E6: Грудка куриная в томатном соусе | F6: 90 | G6: 10.45 | H6: 6.5 | I6: 3.27 | J6: 113 | K6: Акт 2021г
D7: гор.блюдо | E7: Рис отварной | F7: 140 | G7: 3.57 | H7: 5.07 | I7: 37.34 | J7: 209 | K7: №304/2015
D8: гор.напиток | E8: Напиток из замороженой черной смородины | F8: 200 | G8: 0.1 | H8: 0.04 | I8: 10.7 | J8: 44 | K8: ТТК 2022г
D9: хлеб | E9: Хлебная корзина (хлеб пшеничный/хлеб ржано-пшеничный) | F9: 20 | G9: 1.25 | H9: 1.08 | I9: 9.42 | J9: 46 | K9: ТТК
D10: закуска | E10: Салат-бар в ассортименте | F10: 60 | G10: 1.62 | H10: 6.1 | I10: 6.92 | J10: 90 | K10: ТТК 2023г
D11: итого | F11: =SUM(F6:F10) -> 510 | G11: =SUM(G6:G10) -> 16.99 | H11: =SUM(H6:H10) -> 18.79 | I11: =SUM(I6:I10) -> 67.65 | J11: =SUM(J6:J10) -> 502 | L11: 66.8
A12: 1 | B12: 2 | C12: Завтрак | D12: гор.блюдо | E12: Жаркое по-домашнему | F12: 160 | G12: 8.64 | H12: 7.5 | I12: 21.63 | J12: 189 | K12: ТТК 2023г
D13: гор.напиток | E13: Напиток из вишни | F13: 200 | G13: 0.12 | H13: 0.9 | I13: 30.8 | J13: 131 | K13: ТТК 2023г
D14: хлеб | E14: Хлебная корзина (хлеб пшеничный/хлеб ржано-пшеничный) | F14: 20 | G14: 1.25 | H14: 1.08 | I14: 9.42 | J14: 46 | K14: ТТК
D15: фрукты | E15: Плоды свежие (яблоки) | F15: 100 | G15: 0.4 | H15: 0.4 | I15: 9.8 | J15: 47 | K15: №338/2015г
D16: закуска | E16: Салат-бар в ассортименте | F16: 60 | G16: 5.43 | H16: 6.65 | I16: 6.78 | J16: 108 | K16: ТТК 2023г
D17: итого | F17: =SUM(F12:F16) -> 540 | G17: =SUM(G12:G16) -> 15.84 | H17: =SUM(H12:H16) -> 16.53 | I17: =SUM(I12:I16) -> 78.43 | J17: =SUM(J12:J16) -> 521 | L17: 66.8
A18: 1 | B18: 3 | C18: Завтрак | D18: гор.блюдо | E18: Сосиски отварные | F18: 100 | G18: 8.6 | H18: 4.8 | I18: 11.75 | J18: 125 | K18: №243/2015г
D19: гор.блюдо | E19: Макароны отварныеи с сыром | F19: 140 | G19: 5.39 | H19: 6.65 | I19: 29.98 | J19: 201 | K19: ТТК 2019г
D20: гор.напиток | E20: Напиток яблочный | F20: 200 | G20: 0.1 | H20: 0.1 | I20: 12.4 | J20: 52 | K20: №701/2004
D21: хлеб | E21: Хлебная корзина (хлеб пшеничный/хлеб ржано-пшеничный) | F21: 20 | G21: 1.25 | H21: 1.08 | I21: 9.42 | J21: 46 | K21: ТТК
D22: закуска | E22: Салат-бар в ассортименте | F22: 60 | G22: 2.53 | H22: 6.1 | I22: 15.07 | J22: 125 | K22: ТТК 2023г
D23: итого | F23: =SUM(F18:F22) -> 520 | G23: =SUM(G18:G22) -> 17.87 | H23: =SUM(H18:H22) -> 18.73 | I23: =SUM(I18:I22) -> 78.62 | J23: =SUM(J18:J22) -> 549 | L23: 66.8
A24: 1 | B24: 4 | C24: Завтрак | D24: гор.блюдо | E24: Плов с куриными грудками | F24: 160 | G24: 13.14 | H24: 12 | I24: 34 | J24: 297 | K24: ТТК 2023г
D25: напиток | E25: Сок | F25: 180 | G25: 0.9 | H25: 0.18 | I25: 18.2 | J25: 83 | K25: ТТК 2022г
D26: хлеб | E26: Хлебная корзина (хлеб пшеничный/хлеб ржано-пшеничный) | F26: 20 | G26: 1.25 | H26: 1.08 | I26: 9.42 | J26: 46 | K26: ТТК
D27: фрукты | E27: Плоды свежие (яблоки) | F27: 100 | G27: 0.4 | H27: 0.4 | I27: 9.8 | J27: 47 | K27: № 338/2015г
D28: закуска | E28: Салат-бар в ассортименте | F28: 60 | G28: 1.95 | H28: 6.18 | I28: 12.3 | J28: 112 | K28: ТТК 2023г
D29: итого | F29: =SUM(F24:F28) -> 520 | G29: =SUM(G24:G28) -> 17.64 | H29: =SUM(H24:H28) -> 19.84 | I29: =SUM(I24:I28) -> 83.72 | J29: =SUM(J24:J28) -> 585 | L29: 66.8
A30: 1 | B30: 5 | C30: Завтрак | D30: гор.блюдо | E30: Биточки рыбные из фарша минтая | F30: 90 | G30: 9.8 | H30: 2.01 | I30: 10.2 | J30: 98 | K30: ТТК 2021г
D31: гор.блюдо | E31: Пюре картофельное с маслом сливочным | F31: 145 | G31: 3.1 | H31: 7.97 | I31: 20.59 | J31: 169 | K31: №312/215г
D32: гор.напиток | E32: Напиток из шиповника | F32: 200 | G32: 0.01 | I32: 10.18 | J32: 40 | K32: ТТК 2021г
D33: хлеб | E33: Хлебная корзина (хлеб пшеничный/хлеб ржано-пшеничный) | F33: 20 | G33: 1.25 | H33: 1.08 | I33: 9.42 | J33: 46 | K33: ТТК
D34: закуска | E34: Салат-бар в ассортименте | F34: 60 | G34: 3.59 | H34: 6.1 | I34: 18 | J34: 141 | K34: ТТК 2023г
D35: итого | F35: =SUM(F30:F34) -> 515 | G35: =SUM(G30:G34) -> 17.75 | H35: =SUM(H30:H34) -> 17.16 | I35: =SUM(I30:I34) -> 68.39 | J35: =SUM(J30:J34) -> 494 | L35: 66.8
A36: 2 | B36: 1 | C36: Завтрак | D36: гор.блюдо | E36: Котлеты "Столичные" | F36: 90 | G36: 8.1 | H36: 4.05 | I36: 3.4 | J36: 83 | K36: ТТК 2023г
D37: гор.блюдо | E37: Макароны отварные с сыром | F37: 140 | G37: 5.39 | H37: 6.65 | I37: 29.98 | J37: 201 | K37: ТТК 2019г
D38: гор.напиток | E38: Напиток из замороженой черной смородины | F38: 200 | G38: 0.1 | H38: 0.04 | I38: 10.7 | J38: 44 | K38: ТТК 2022г
D39: хлеб | E39: Хлебная корзина (хлеб пшеничный/хлеб ржано-пшеничный) | F39: 20 | G39: 1.25 | H39: 1.08 | I39: 9.42 | J39: 46 | K39: ТТК
D40: закуска | E40: Салат-бар в ассортименте | F40: 60 | G40: 1.62 | H40: 6.1 | I40: 12.9 | J40: 113 | K40: ТТК 2023г
D41: итого | F41: =SUM(F36:F40) -> 510 | G41: =SUM(G36:G40) -> 16.46 | H41: =SUM(H36:H40) -> 17.92 | I41: =SUM(I36:I40) -> 66.4 | J41: =SUM(J36:J40) -> 487 | L41: 66.8
A42: 2 | B42: 2 | C42: Завтрак | D42: гор.блюдо | E42: Жаркое из птицы (грудки куриные) | F42: 160 | G42: 12.98 | H42: 10.63 | I42: 28.5 | J42: 262 | K42: ТТК 2023г
D43: гор.напиток | E43: Напиток из вишни | F43: 200 | G43: 0.12 | H43: 0.9 | I43: 30.8 | J43: 131 | K43: ТТК 2023г
D44: хлеб | E44: Хлебная корзина (хлеб пшеничный/хлеб ржано-пшеничный) | F44: 20 | G44: 1.25 | H44: 1.08 | I44: 9.42 | J44: 46 | K44: ТТК
D45: фрукты | E45: Плоды свежие (яблоки) | F45: 100 | G45: 0.4 | H45: 0.4 | I45: 9.8 | J45: 47 | K45: №338/2015г
D46: закуска | E46: Салат-бар в ассортименте | F46: 60 | G46: 5.43 | H46: 6.65 | I46: 6.78 | J46: 108 | K46: ТТК 2023г
D47: итого | F47: =SUM(F42:F46) -> 540 | G47: =SUM(G42:G46) -> 20.18 | H47: =SUM(H42:H46) -> 19.66 | I47: =SUM(I42:I46) -> 85.3 | J47: =SUM(J42:J46) -> 594 | L47: 66.8
A48: 2 | B48: 3 | C48: Завтрак | D48: гор.блюдо | E48: Сосиски отварные | F48: 100 | G48: 8.6 | H48: 4.8 | I48: 11.75 | J48: 125 | K48: №243/2015г
D49: гор.блюдо | E49: Каша гречневая вязкая с маслом | F49: 145 | G49: 3.31 | H49: 7.95 | I49: 20.59 | J49: 167 | K49: №303/2015г
D50: гор.напиток | E50: Напиток яблочный | F50: 200 | G50: 0.1 | H50: 0.1 | I50: 12.4 | J50: 52 | K50: №701/2004г
D51: хлеб | E51: Хлебная корзина (хлеб пшеничный/хлеб ржано-пшеничный) | F51: 20 | G51: 1.25 | H51: 1.08 | I51: 9.42 | J51: 46 | K51: ТТК
D52: закуска | E52: Салат-бар в ассортименте | F52: 60 | G52: 2.53 | H52: 6.1 | I52: 15.07 | J52: 125 | K52: ТТК 2023г
D53: итого | F53: =SUM(F48:F52) -> 525 | G53: =SUM(G48:G52) -> 15.79 | H53: =SUM(H48:H52) -> 20.03 | I53: =SUM(I48:I52) -> 69.23 | J53: =SUM(J48:J52) -> 515 | L53: 66.8
A54: 2 | B54: 4 | C54: Завтрак | D54: гор.блюдо | E54: Плов с говядиной | F54: 160 | G54: 12.2 | H54: 10.6 | I54: 23.09 | J54: 237 | K54: ТТК 2021г
D55: гор.напиток | E55: Напиток из замороженой черной смородины | F55: 200 | G55: 0.1 | H55: 0.04 | I55: 10.7 | J55: 44 | K55: ТТК 2022г
D56: хлеб | E56: Хлебная корзина (хлеб пшеничный/хлеб ржано-пшеничный) | F56: 20 | G56: 1.25 | H56: 1.08 | I56: 9.42 | J56: 46 | K56: ТТК
D57: фрукты | E57: Плоды свежие (яблоки) | F57: 100 | G57: 0.4 | H57: 0.4 | I57: 9.8 | J57: 47 | K57: №338/2015г
D58: закуска | E58: Салат-бар в ассортименте | F58: 60 | G58: 1.95 | H58: 6.18 | I58: 12.3 | J58: 112 | K58: ТТК 2023г
D59: итого | F59: =SUM(F54:F58) -> 540 | G59: =SUM(G54:G58) -> 15.9 | H59: =SUM(H54:H58) -> 18.3 | I59: =SUM(I54:I58) -> 65.31 | J59: =SUM(J54:J58) -> 486 | L59: 66.8
A60: 2 | B60: 5 | C60: Завтрак | D60: гор.блюдо | E60: Ежики с мясом и рисом в соусе томатном | F60: 100 | G60: 8.2 | H60: 5 | I60: 10.23 | J60: 119 | K60: ТТК 2020г
D61: гор. блюдо | E61: Пюре картофельное | F61: 140 | G61: 3.06 | H61: 4.35 | I61: 20.56 | J61: 136 | K61: №312/2015г
D62: напиток | E62: Сок | F62: 180 | G62: 0.9 | H62: 0.18 | I62: 18.2 | J62: 83 | K62: ТТК 2022г
D63: хлеб | E63: Хлебная корзина (хлеб пшеничный/хлеб ржано-пшеничный) | F63: 20 | G63: 1.25 | H63: 1.08 | I63: 9.42 | J63: 46 | K63: ТТК
D64: закуска | E64: Салат-бар в ассортименте | F64: 60 | G64: 3.59 | H64: 6.1 | I64: 18 | J64: 141 | K64: ТТК 2023г
D65: итого | F65: =SUM(F60:F64) -> 500 | G65: =SUM(G60:G64) -> 17 | H65: =SUM(H60:H64) -> 16.71 | I65: =SUM(I60:I64) -> 76.41 | J65: =SUM(J60:J64) -> 525 | L65: 66.8
C66: Итого за день: | F66: =F64 -> 60 | G66: =G64 -> 3.59 | H66: =H64 -> 6.1 | I66: =I64 -> 18 | J66: =J64 -> 141 | L66: =L65 -> 66.8
